Workbook

Sheet Total (3)
B1: Senaste resultat
A2: Skeppare | C2: 2018-05-15 Race 1 | D2: 2018-05-15 Race 2 | E2: 2018-05-22 Race 1 | F2: 2018-05-22 Race 2 | G2: 2018-05-29 Race 1 | H2: 2018-05-29 Race 2 | I2: 2018-06-05 Race 1 | J2: 2018-06-05 Race 2
A3: Viktor Lundgren | C3: 2 | D3: 2 | E3: 3 | F3: 3 | G3: 2 | H3: 5 | I3: DNS | J3: DNS
A4: Lennart Berglund | C4: 3 | D4: 1 | E4: 2 | F4: 1 | G4: 1 | H4: 2 | I4: DSQ | J4: 3
A5: Pär Hansson | C5: 5 | D5: 5 | E5: 6 | F5: 4 | G5: 3 | H5: 3 | I5: DNS | J5: DNS
A6: Peter Löfgren | C6: 4 | D6: 3 | E6: 1 | F6: 7 | G6: DNS | H6: DNS | I6: DNS | J6: DNS
A7: Martin Westergren | C7: 1 | D7: 4 | E7: 4 | F7: 2 | G7: DNS | H7: DNS | I7: 1 | J7: 1
A8: Christian Wennberg | C8: DNS | D8: DNS | E8: DNS | F8: 5 | G8: DNS | H8: DNS | I8: 3 | J8: 2
A9: Erik Lundqvist | C9: DNS | D9: DNS | E9: 5 | F9: 6 | G9: 4 | H9: 1 | I9: DNS | J9: DNS
A10: Johan Bjerkner | C10: DNS | D10: DNS | E10: DNS | F10: DNS | G10: DNF | H10: DNF | I10: DNS | J10: DNS
A11: Johan Westberg | C11: DNS | D11: DNS | E11: DNS | F11: DNS | G11: 6 | H11: 4 | I11: DNS | J11: DNS
A12: Per Lagercrantz | C12: DNS | D12: DNS | E12: DNS | F12: DNS | G12: 5 | H12: 6 | I12: 4 | J12: 4

Sheet 2018-06-05 Race 2
A1: Segling:
A3: Banlängd: | B3: 1.2
A4: Starttid: | B4: 00:00:00
A7: Skeppare | B7: Båt | C7: SRS | D7: SRSu | E7: Spin | F7: Starttid | G7: Måltid | H7: Seglad tid | I7: Beräknad tid | J7: Placering | K7: Tid till föregående | L7: Tid till segraren | M7: SRSa | N7: Perf | O7: VMC | P7: DeltagarNr
A8: Martin Westergren | B8: Scanper 22 | C8: 0.816 | D8: 0.801 | E8: nej | F8: 00:00:00 | G8: 00:18:10 | H8: =G8-F8 -> 00:18:10 | I8: =H8*D8 -> 00:14:33.090 | J8: 1 | O8: =$B$3/(HOUR(H8)+(MINUTE(H8)/60+SECOND(H8)/3600)) -> 3.963302752 | P8: 5
A9: Christian Wennberg | B9: H-båt | C9: 0.88 | D9: 0.855 | E9: nej | F9: 00:00:00 | G9: 00:18:13 | H9: =G9-F9 -> 00:18:13 | I9: =H9*D9 -> 00:15:34.515 | J9: 2 | K9: =I9-I8 -> 00:01:01.425 | L9: =I9-$I$8 -> 00:01:01.425 | M9: =$I$8/H9 -> 0.7988014639 | N9: =(HOUR($I$8)*3600+MINUTE($I$8)*60+SECOND($I$8))/(HOUR(I9)*3600+MINUTE(I9)*60+SECOND(I9)) -> 0.9336898396 | O9: =$B$3/(HOUR(H9)+(MINUTE(H9)/60+SECOND(H9)/3600)) -> 3.95242452 | P9: 6
A10: Lennart Berglund | B10: Rival 22 Special | C10: 0.957 | D10: 0.926 | E10: nej | F10: 00:00:00 | G10: 00:17:37 | H10: =G10-F10 -> 00:17:37 | I10: =H10*D10 -> 00:16:18.782 | J10: 3 | K10: =I10-I9 -> 00:00:44.267 | L10: =I10-$I$8 -> 00:01:45.692 | M10: =$I$8/H10 -> 0.8260075686 | N10: =(HOUR($I$8)*3600+MINUTE($I$8)*60+SECOND($I$8))/(HOUR(I10)*3600+MINUTE(I10)*60+SECOND(I10)) -> 0.8917262513 | O10: =$B$3/(HOUR(H10)+(MINUTE(H10)/60+SECOND(H10)/3600)) -> 4.087038789 | P10: 2
A11: Per Lagercrantz | B11: Herlinkryssare | D11: 0.8 | E11: nej | F11: 00:00:00 | G11: 00:23:04 | H11: =G11-F11 -> 00:23:04 | I11: =H11*D11 -> 00:18:27.200 | J11: 4 | K11: 00:02:08.418 | L11: 00:03:54.110 | M11: =$I$8/H11 -> 0.6308453757 | N11: =(HOUR($I$8)*3600+MINUTE($I$8)*60+SECOND($I$8))/(HOUR(I11)*3600+MINUTE(I11)*60+SECOND(I11)) -> 0.7886178862 | O11: =$B$3/(HOUR(H11)+(MINUTE(H11)/60+SECOND(H11)/3600)) -> 3.121387283 | P11: 10
A12: Viktor Lundgren | B12: Smaragd | C12: 0.971 | D12: 0.933 | E12: nej | F12: 00:00:00 | G12: DNF | P12: 1
A13: Pär Hansson | B13: Plastpyret | C13: 0.952 | D13: 0.921 | E13: ja | F13: 00:00:00 | G13: DNF | P13: 3
A14: Peter Löfgren | B14: Safir | C14: 0.957 | D14: 0.919 | E14: ja | F14: 00:00:00 | G14: DNF | P14: 4
A15: Erik Lundqvist | B15: M22 | C15: 0.876 | D15: 0.876 | E15: nej | F15: 00:00:00 | G15: DNF | P15: 7
A16: Johan Bjerkner | B16: S30 | C16: 0.986 | D16: 0.955 | E16: nej | F16: 00:00:00 | G16: DNF | P16: 8
A17: Johan Westberg | B17: Sunvind 20 | C17: 0.749 | D17: 0.734 | E17: nej | F17: 00:00:00 | G17: DNF | P17: 9

Sheet 2018-06-05 Race 1
A1: Segling:
A3: Banlängd: | B3: 1.2
A4: Starttid: | B4: 00:00:00
A7: Skeppare | B7: Båt | C7: SRS | D7: SRSu | E7: Spin | F7: Starttid | G7: Måltid | H7: Seglad tid | I7: Beräknad tid | J7: Placering | K7: Tid till föregående | L7: Tid till segraren | M7: SRSa | N7: Perf | O7: VMC | P7: DeltagarNr
A8: Martin Westergren | B8: Scanper 22 | C8: 0.816 | D8: 0.801 | E8: nej | F8: 00:00:00 | G8: 00:15:25 | H8: =G8-F8 -> 00:15:25 | I8: =H8*D8 -> 00:12:20.925 | J8: 1 | O8: =$B$3/(HOUR(H8)+(MINUTE(H8)/60+SECOND(H8)/3600)) -> 4.67027027 | P8: 5
A9: Lennart Berglund | B9: Rival 22 Special | C9: 0.957 | D9: 0.926 | E9: nej | F9: 00:00:00 | G9: 00:14:09 | H9: =G9-F9 -> 00:14:09 | I9: =H9*D9 -> 00:13:06.174 | J9: 2 | K9: =I9-I8 -> 00:00:45.249 | L9: =I9-$I$8 -> 00:00:45.249 | M9: =$I$8/H9 -> 0.8727031802 | N9: =(HOUR($I$8)*3600+MINUTE($I$8)*60+SECOND($I$8))/(HOUR(I9)*3600+MINUTE(I9)*60+SECOND(I9)) -> 0.9427480916 | O9: =$B$3/(HOUR(H9)+(MINUTE(H9)/60+SECOND(H9)/3600)) -> 5.088339223 | P9: 2
A10: Christian Wennberg | B10: H-båt | C10: 0.88 | D10: 0.855 | E10: nej | F10: 00:00:00 | G10: 00:15:30 | H10: =G10-F10 -> 00:15:30 | I10: =H10*D10 -> 00:13:15.150 | J10: 3 | K10: =I10-I9 -> 00:00:08.976 | L10: =I10-$I$8 -> 00:00:54.225 | M10: =$I$8/H10 -> 0.7966935484 | N10: =(HOUR($I$8)*3600+MINUTE($I$8)*60+SECOND($I$8))/(HOUR(I10)*3600+MINUTE(I10)*60+SECOND(I10)) -> 0.9320754717 | O10: =$B$3/(HOUR(H10)+(MINUTE(H10)/60+SECOND(H10)/3600)) -> 4.64516129 | P10: 6
A11: Per Lagercrantz | B11: Herlinkryssare | D11: 0.8 | E11: nej | F11: 00:00:00 | G11: 00:19:12 | H11: =G11-F11 -> 00:19:12 | I11: =H11*D11 -> 00:15:21.600 | J11: 4 | K11: 00:02:06.450 | L11: 00:03:00.675 | M11: =$I$8/H11 -> 0.6431640625 | N11: =(HOUR($I$8)*3600+MINUTE($I$8)*60+SECOND($I$8))/(HOUR(I11)*3600+MINUTE(I11)*60+SECOND(I11)) -> 0.8036876356 | O11: =$B$3/(HOUR(H11)+(MINUTE(H11)/60+SECOND(H11)/3600)) -> 3.75 | P11: 10
A12: Viktor Lundgren | B12: Smaragd | C12: 0.971 | D12: 0.933 | E12: nej | F12: 00:00:00 | G12: DNF | P12: 1
A13: Pär Hansson | B13: Plastpyret | C13: 0.952 | D13: 0.921 | E13: ja | F13: 00:00:00 | G13: DNF | P13: 3
A14: Peter Löfgren | B14: Safir | C14: 0.957 | D14: 0.919 | E14: ja | F14: 00:00:00 | G14: DNF | P14: 4
A15: Erik Lundqvist | B15: M22 | C15: 0.876 | D15: 0.876 | E15: nej | F15: 00:00:00 | G15: DNF | P15: 7
A16: Johan Bjerkner | B16: S30 | C16: 0.986 | D16: 0.955 | E16: nej | F16: 00:00:00 | G16: DNF | P16: 8
A17: Johan Westberg | B17: Sunvind 20 | C17: 0.749 | D17: 0.734 | E17: nej | F17: 00:00:00 | G17: DNF | P17: 9

Sheet 2018-05-29 Race 2
A1: Segling:
A3: Banlängd: | B3: 0.6
A4: Starttid: | B4: 00:00:00
A7: Skeppare | B7: Båt | C7: SRS | D7: SRSu | E7: Spin | F7: Starttid | G7: Måltid | H7: Seglad tid | I7: Beräknad tid | J7: Placering | K7: Tid till föregående | L7: Tid till segraren | M7: SRSa | N7: Perf | O7: VMC | P7: DeltagarNr
A8: Erik Lundqvist | B8: M22 | C8: 0.876 | D8: 0.876 | E8: nej | F8: 00:00:00 | G8: 00:19:11 | H8: =G8-F8 -> 00:19:11 | I8: =H8*D8 -> 00:16:48.276 | J8: 1 | O8: =$B$3/(HOUR(H8)+(MINUTE(H8)/60+SECOND(H8)/3600)) -> 1.876629018 | P8: 7
A9: Lennart Berglund | B9: Rival 22 Special | C9: 0.957 | D9: 0.926 | E9: nej | F9: 00:00:00 | G9: 00:19:01 | H9: 00:19:01 | I9: 00:17:36.566 | J9: 2 | K9: =I9-I8 -> 00:00:48.290 | L9: =I9-$I$8 -> 00:00:48.290 | M9: =$I$8/H9 -> 0.8836774759 | N9: =(HOUR($I$8)*3600+MINUTE($I$8)*60+SECOND($I$8))/(HOUR(I9)*3600+MINUTE(I9)*60+SECOND(I9)) -> 0.9536423841 | O9: 1.893076249 | P9: 2
A10: Pär Hansson | B10: Plastpyret | C10: 0.952 | D10: 0.921 | E10: nej | F10: 00:00:00 | G10: 00:19:17 | H10: 00:19:17 | I10: 00:17:45.597 | J10: 3 | K10: =I10-I9 -> 00:00:09.031 | L10: =I10-$I$8 -> 00:00:57.321 | M10: 0.8714572169 | N10: 0.9455909944 | O10: 1.866897148 | P10: 3
A11: Johan Westberg | B11: Sunvind 20 | C11: 0.749 | D11: 0.734 | E11: nej | F11: 00:00:00 | G11: 00:25:49 | H11: 00:25:49 | I11: 00:18:56.966 | J11: 4 | K11: 00:01:11.369 | L11: 00:02:08.690 | M11: 0.6509205939 | N11: 0.8865435356 | O11: 1.394448031 | P11: 9
A12: Viktor Lundgren | B12: Smaragd | C12: 0.971 | D12: 0.933 | E12: nej | F12: 00:00:00 | G12: 00:20:28 | H12: 00:20:28 | I12: 00:19:05.724 | J12: 5 | K12: 00:00:08.758 | L12: 00:02:17.448 | M12: 0.8210716612 | N12: 0.8795811518 | O12: 1.758957655 | P12: 1
A13: Per Lagercrantz | B13: Tirza | D13: 0.8 | E13: nej | F13: 00:00:00 | G13: 00:28:27 | H13: 00:28:27 | I13: 00:22:45.600 | J13: 6 | K13: 00:03:39.876 | L13: 00:05:57.324 | M13: 0.5906713533 | N13: 0.737920937 | O13: 1.265377856 | P13: 10
A14: Peter Löfgren | B14: Safir | C14: 0.957 | D14: 0.919 | E14: ja | F14: DNS | G14: DNF | P14: 4
A15: Martin Westergren | B15: Scanper 22 | C15: 0.816 | D15: 0.801 | E15: nej | F15: DNS | G15: DNF | P15: 5
A16: Christian Wennberg | B16: H-båt | C16: 0.88 | D16: 0.855 | E16: nej | F16: DNS | G16: DNF | P16: 6
A17: Johan Bjerkner | B17: S30 | C17: 0.986 | D17: 0.955 | E17: nej | F17: 00:00:00 | G17: DNF | P17: 8

Sheet 2018-05-29 Race 1
A1: Segling:
A3: Banlängd: | B3: 1.2
A4: Starttid: | B4: 00:00:00
A7: Skeppare | B7: Båt | C7: SRS | D7: SRSu | E7: Spin | F7: Starttid | G7: Måltid | H7: Seglad tid | I7: Beräknad tid | J7: Placering | K7: Tid till föregående | L7: Tid till segraren | M7: SRSa | N7: Perf | O7: VMC | P7: DeltagarNr
A8: Lennart Berglund | B8: Rival 22 Special | C8: 0.957 | D8: 0.926 | E8: nej | F8: 00:00:00 | G8: 00:27:34 | H8: =G8-F8 -> 00:27:34 | I8: =H8*D8 -> 00:25:31.604 | J8: 1 | O8: =$B$3/(HOUR(H8)+(MINUTE(H8)/60+SECOND(H8)/3600)) -> 2.61185006 | P8: 2
A9: Viktor Lundgren | B9: Smaragd | C9: 0.971 | D9: 0.933 | E9: nej | F9: 00:00:00 | G9: 00:30:51 | H9: 00:30:51 | I9: 00:28:46.983 | J9: 2 | K9: =I9-I8 -> 00:03:15.379 | L9: =I9-$I$8 -> 00:03:15.379 | M9: =$I$8/H9 -> 0.8274467855 | N9: =(HOUR($I$8)*3600+MINUTE($I$8)*60+SECOND($I$8))/(HOUR(I9)*3600+MINUTE(I9)*60+SECOND(I9)) -> 0.8870874349 | O9: 2.333873582 | P9: 1
A10: Pär Hansson | B10: Plastpyret | C10: 0.952 | D10: 0.921 | E10: nej | F10: 00:00:00 | G10: 00:32:16 | H10: 00:32:16 | I10: 00:29:43.056 | J10: 3 | K10: =I10-I9 -> 00:00:56.073 | L10: =I10-$I$8 -> 00:04:11.452 | M10: 0.7911177686 | N10: 0.8592260236 | O10: 2.231404959 | P10: 3
A11: Erik Lundqvist | B11: M22 | C11: 0.876 | D11: 0.876 | E11: nej | F11: 00:00:00 | G11: 00:36:27 | H11: 00:36:27 | I11: 00:31:55.812 | J11: 4 | K11: 00:02:12.756 | L11: 00:06:24.208 | M11: 0.7003219021 | N11: 0.7995824635 | O11: 1.975308642 | P11: 7
A12: Per Lagercrantz | B12: Tirza | D12: 0.8 | E12: nej | F12: 00:00:00 | G12: 00:54:09 | H12: 00:54:09 | I12: 00:43:19.200 | J12: 5 | K12: 00:11:23.388 | L12: 00:17:47.596 | M12: 0.4714078178 | N12: 0.5894574836 | O12: 1.329639889 | P12: 10
A13: Johan Westberg | B13: Sunvind 20 | C13: 0.749 | D13: 0.734 | E13: nej | F13: 00:00:00 | G13: 00:59:29 | H13: 00:59:29 | I13: 00:43:39.646 | J13: 6 | K13: 00:00:20.446 | L13: 00:18:08.042 | M13: 0.4291409358 | N13: 0.5847328244 | O13: 1.210423088 | P13: 9
A14: Peter Löfgren | B14: Safir | C14: 0.957 | D14: 0.919 | E14: ja | F14: DNS | G14: DNF | P14: 4
A15: Martin Westergren | B15: Scanper 22 | C15: 0.816 | D15: 0.801 | E15: nej | F15: DNS | G15: DNF | P15: 5
A16: Christian Wennberg | B16: H-båt | C16: 0.88 | D16: 0.855 | E16: nej | F16: DNS | G16: DNF | P16: 6
A17: Johan Bjerkner | B17: S30 | C17: 0.986 | D17: 0.955 | E17: nej | F17: 00:00:00 | G17: DNF | P17: 8

Sheet 2018-05-22 Race 2
A1: Segling:
A3: Banlängd: | B3: 1.2
A4: Starttid: | B4: 00:00:00
A7: Skeppare | B7: Båt | C7: SRS | D7: SRSu | E7: Spin | F7: Starttid | G7: Måltid | H7: Seglad tid | I7: Beräknad tid | J7: Placering | K7: Tid till föregående | L7: Tid till segraren | M7: SRSa | N7: Perf | O7: VMC | P7: DeltagarNr
A8: Lennart Berglund | B8: Rival 22 Special | C8: 0.957 | D8: 0.926 | E8: nej | F8: 00:00:00 | G8: 00:21:17 | H8: =G8-F8 -> 00:21:17 | I8: =H8*D8 -> 00:19:42.502 | J8: 1 | O8: =$B$3/(HOUR(H8)+(MINUTE(H8)/60+SECOND(H8)/3600)) -> 3.382928739 | P8: 2
A9: Martin Westergren | B9: Scanper 22 | C9: 0.816 | D9: 0.801 | E9: nej | F9: 00:00:00 | G9: 00:25:43 | H9: 00:25:43 | I9: =H9*D9 -> 00:20:35.943 | J9: 2 | K9: =I9-I8 -> 00:00:53.441 | L9: =I9-$I$8 -> 00:00:53.441 | M9: =$I$8/H9 -> 0.7663655217 | N9: =(HOUR($I$8)*3600+MINUTE($I$8)*60+SECOND($I$8))/(HOUR(I9)*3600+MINUTE(I9)*60+SECOND(I9)) -> 0.9571197411 | O9: 2.799740765 | P9: 5
A10: Viktor Lundgren | B10: Smaragd | C10: 0.971 | D10: 0.933 | E10: nej | F10: 00:00:00 | G10: 00:22:21 | H10: 00:22:21 | I10: =H10*D10 -> 00:20:51.153 | J10: 3 | K10: =I10-I9 -> 00:00:15.210 | L10: =I10-$I$8 -> 00:01:08.651 | M10: 0.8818061148 | N10: 0.9456434852 | O10: 3.22147651 | P10: 1
A11: Pär Hansson | B11: Plastpyret | C11: 0.952 | D11: 0.921 | E11: ja | F11: 00:00:00 | G11: 00:22:36 | H11: 00:22:36 | I11: =H11*C11 -> 00:21:30.912 | J11: 4 | K11: 00:00:39.759 | L11: 00:01:48.410 | M11: 0.8720516224 | N11: 0.9163439194 | O11: 3.185840708 | P11: 3
A12: Christian Wennberg | B12: H-båt | C12: 0.88 | D12: 0.855 | E12: nej | F12: 00:00:00 | G12: 00:25:10 | H12: 00:25:10 | I12: =H12*D12 -> 00:21:31.050 | J12: 5 | K12: 00:00:00.138 | L12: 00:01:48.548 | M12: 0.7831139073 | N12: 0.9163439194 | O12: 2.860927152 | P12: 6
A13: Erik | B13: M22 | C13: 0.876 | D13: 0.876 | E13: nej | F13: 00:00:00 | G13: 00:25:27 | H13: 00:25:27 | I13: =H13*D13 -> 00:22:17.652 | J13: 6 | K13: 00:00:46.602 | L13: 00:02:35.150 | M13: 0.7743955468 | N13: 0.8841554559 | O13: 2.829076621 | P13: 7
A14: Peter Löfgren | B14: Safir | C14: 0.957 | D14: 0.919 | E14: ja | F14: 00:00:00 | G14: 00:23:45 | H14: 00:23:45 | I14: =H14*C14 -> 00:22:43.725 | J14: 7 | K14: 00:00:26.073 | L14: 00:03:01.223 | M14: 0.8298259649 | N14: 0.8673020528 | O14: 3.031578947 | P14: 4

Sheet 2018-05-22 Race 1
A1: Segling:
A3: Banlängd: | B3: 1.2
A4: Starttid: | B4: 00:00:00
A7: Skeppare | B7: Båt | C7: SRS | D7: SRSu | E7: Spin | F7: Starttid | G7: Måltid | H7: Seglad tid | I7: Beräknad tid | J7: Placering | K7: Tid till föregående | L7: Tid till segraren | M7: SRSa | N7: Perf | O7: VMC | P7: DeltagarNr
A8: Peter Löfgren | B8: Safir | C8: 0.957 | D8: 0.919 | E8: ja | F8: 00:00:00 | G8: 00:21:05 | H8: =G8-F8 -> 00:21:05 | I8: =H8*C8 -> 00:20:10.605 | J8: 1 | O8: =$B$3/(HOUR(H8)+(MINUTE(H8)/60+SECOND(H8)/3600)) -> 3.415019763 | P8: 4
A9: Lennart Berglund | B9: Rival 22 Special | C9: 0.957 | D9: 0.926 | E9: nej | F9: 00:00:00 | G9: 00:22:09 | H9: 00:22:09 | I9: =H9*D9 -> 00:20:30.654 | J9: 2 | K9: =I9-I8 -> 00:00:20.049 | L9: =I9-$I$8 -> 00:00:20.049 | M9: =$I$8/H9 -> 0.9109142212 | N9: =(HOUR($I$8)*3600+MINUTE($I$8)*60+SECOND($I$8))/(HOUR(I9)*3600+MINUTE(I9)*60+SECOND(I9)) -> 0.9837530463 | O9: 3.250564334 | P9: 2
A10: Viktor Lundgren | B10: Smaragd | C10: 0.971 | D10: 0.933 | E10: nej | F10: 00:00:00 | G10: 00:22:42 | H10: 00:22:42 | I10: =H10*D10 -> 00:21:10.746 | J10: 3 | K10: =I10-I9 -> 00:00:40.092 | L10: =I10-$I$8 -> 00:01:00.141 | M10: 0.8888436123 | N10: 0.9527930763 | O10: 3.171806167 | P10: 1
A11: Martin Westergren | B11: Scanper 22 | C11: 0.816 | D11: 0.801 | E11: nej | F11: 00:00:00 | G11: 00:27:44 | H11: 00:27:44 | I11: =H11*D11 -> 00:22:12.864 | J11: 4 | K11: 00:01:02.118 | L11: 00:02:02.259 | M11: 0.7275270433 | N11: 0.9084771193 | O11: 2.596153846 | P11: 5
A12: Erik | B12: M22 | C12: 0.876 | D12: 0.876 | E12: nej | F12: 00:00:00 | G12: 00:28:26 | H12: 00:28:26 | I12: =H12*D12 -> 00:24:54.456 | J12: 5 | K12: 00:02:41.592 | L12: 00:04:43.851 | M12: 0.709616061 | N12: 0.8105756359 | O12: 2.532239156 | P12: 7
A13: Pär Hansson | B13: Plastpyret | C13: 0.952 | D13: 0.921 | E13: ja | F13: 00:00:00 | G13: 00:29:58 | H13: 00:29:58 | I13: =H13*C13 -> 00:28:31.696 | J13: 6 | K13: 00:03:37.240 | L13: 00:08:21.091 | M13: 0.6733064516 | N13: 0.7073598131 | O13: 2.402669633 | P13: 3
A14: Christian Wennberg | B14: H-båt | C14: 0.88 | D14: 0.855 | E14: nej | F14: DNS | G14: DNF | P14: 6

Sheet 2018-05-15 Race 2
A1: Segling:
A3: Banlängd: | B3: 1.6
A4: Starttid: | B4: 00:00:00
A7: Skeppare | B7: Båt | C7: SRS | D7: SRSu | E7: Spin | F7: Starttid | G7: Måltid | H7: Seglad tid | I7: Beräknad tid | J7: Placering | K7: Tid till föregående | L7: Tid till segraren | M7: SRSa | N7: Perf | O7: VMC | P7: DeltagarNr
A8: Lennart Berglund | B8: Rival 22 Special | C8: 0.957 | D8: 0.926 | E8: nej | F8: 00:00:00 | G8: 00:20:52 | H8: =G8-F8 -> 00:20:52 | I8: =H8*D8 -> 00:19:19.352 | J8: 1 | O8: =$B$3/(HOUR(H8)+(MINUTE(H8)/60+SECOND(H8)/3600)) -> 4.600638978 | P8: 2
A9: Viktor Lundgren | B9: Smaragd | C9: 0.971 | D9: 0.933 | E9: nej | F9: 00:00:00 | G9: 00:22:31 | H9: =G9-F9 -> 00:22:31 | I9: =H9*D9 -> 00:21:00.483 | J9: 2 | K9: =I9-I8 -> 00:01:41.131 | L9: =I9-$I$8 -> 00:01:41.131 | M9: =$I$8/H9 -> 0.8581435973 | N9: =(HOUR($I$8)*3600+MINUTE($I$8)*60+SECOND($I$8))/(HOUR(I9)*3600+MINUTE(I9)*60+SECOND(I9)) -> 0.9198412698 | O9: =$B$3/(HOUR(H9)+(MINUTE(H9)/60+SECOND(H9)/3600)) -> 4.263508512 | P9: 1
A10: Peter Löfgren | B10: Safir | C10: 0.957 | D10: 0.919 | E10: ja | F10: 00:00:00 | G10: 00:22:25 | H10: =G10-F10 -> 00:22:25 | I10: =H10*C10 -> 00:21:27.165 | J10: 3 | K10: =I10-I9 -> 00:00:26.682 | L10: =I10-$I$8 -> 00:02:07.813 | M10: =$I$8/H10 -> 0.8619717472 | N10: =(HOUR($I$8)*3600+MINUTE($I$8)*60+SECOND($I$8))/(HOUR(I10)*3600+MINUTE(I10)*60+SECOND(I10)) -> 0.9005439005 | O10: =$B$3/(HOUR(H10)+(MINUTE(H10)/60+SECOND(H10)/3600)) -> 4.282527881 | P10: 4
A11: Martin Westergren | B11: Scanper 22 | C11: 0.816 | D11: 0.801 | E11: nej | F11: 00:00:00 | G11: 00:27:06 | H11: =G11-F11 -> 00:27:06 | I11: =H11*D11 -> 00:21:42.426 | J11: 4 | K11: 00:00:15.261 | L11: 00:02:23.074 | M11: =$I$8/H11 -> 0.7130086101 | N11: =(HOUR($I$8)*3600+MINUTE($I$8)*60+SECOND($I$8))/(HOUR(I11)*3600+MINUTE(I11)*60+SECOND(I11)) -> 0.8901689708 | O11: =$B$3/(HOUR(H11)+(MINUTE(H11)/60+SECOND(H11)/3600)) -> 3.542435424 | P11: 5
A12: Pär Hansson | B12: Plastpyret | C12: 0.952 | D12: 0.921 | E12: ja | F12: 00:00:00 | G12: 00:22:50 | H12: =G12-F12 -> 00:22:50 | I12: =H12*C12 -> 00:21:44.240 | J12: 5 | K12: 00:00:01.814 | L12: 00:02:24.888 | M12: =$I$8/H12 -> 0.8462423358 | N12: =(HOUR($I$8)*3600+MINUTE($I$8)*60+SECOND($I$8))/(HOUR(I12)*3600+MINUTE(I12)*60+SECOND(I12)) -> 0.888803681 | O12: =$B$3/(HOUR(H12)+(MINUTE(H12)/60+SECOND(H12)/3600)) -> 4.204379562 | P12: 3

Sheet 2018-05-15 Race 1
A1: Segling:
A3: Banlängd: | B3: 1.6
A4: Starttid: | B4: 00:00:00
A7: Skeppare | B7: Båt | C7: SRS | D7: SRSu | E7: Spin | F7: Starttid | G7: Måltid | H7: Seglad tid | I7: Beräknad tid | J7: Placering | K7: Tid till föregående | L7: Tid till segraren | M7: SRSa | N7: Perf | O7: VMC | P7: DeltagarNr
A8: Martin Westergren | B8: Scanper 22 | C8: 0.816 | D8: 0.801 | E8: nej | F8: 00:00:00 | G8: 00:33:50 | H8: =G8-F8 -> 00:33:50 | I8: =H8*D8 -> 00:27:06.030 | J8: 1 | O8: =$B$3/(HOUR(H8)+(MINUTE(H8)/60+SECOND(H8)/3600)) -> 2.837438424 | P8: 5
A9: Viktor Lundgren | B9: Smaragd | C9: 0.971 | D9: 0.933 | E9: nej | F9: 00:00:00 | G9: 00:29:16 | H9: =G9-F9 -> 00:29:16 | I9: =H9*D9 -> 00:27:18.348 | J9: 2 | K9: =I9-I8 -> 00:00:12.318 | L9: =I9-$I$8 -> 00:00:12.318 | M9: =$I$8/H9 -> 0.9259851936 | N9: =(HOUR($I$8)*3600+MINUTE($I$8)*60+SECOND($I$8))/(HOUR(I9)*3600+MINUTE(I9)*60+SECOND(I9)) -> 0.9926739927 | O9: =$B$3/(HOUR(H9)+(MINUTE(H9)/60+SECOND(H9)/3600)) -> 3.280182232 | P9: 1
A10: Lennart Berglund | B10: Rival 22 Special | C10: 0.957 | D10: 0.926 | E10: nej | F10: 00:00:00 | G10: 00:30:12 | H10: =G10-F10 -> 00:30:12 | I10: =H10*D10 -> 00:27:57.912 | J10: 3 | K10: =I10-I9 -> 00:00:39.564 | L10: =I10-$I$8 -> 00:00:51.882 | M10: =$I$8/H10 -> 0.8973675497 | N10: =(HOUR($I$8)*3600+MINUTE($I$8)*60+SECOND($I$8))/(HOUR(I10)*3600+MINUTE(I10)*60+SECOND(I10)) -> 0.9690107271 | O10: =$B$3/(HOUR(H10)+(MINUTE(H10)/60+SECOND(H10)/3600)) -> 3.178807947 | P10: 2
A11: Peter Löfgren | B11: Safir | C11: 0.957 | D11: 0.919 | E11: ja | F11: 00:00:00 | G11: 00:29:47 | H11: =G11-F11 -> 00:29:47 | I11: =H11*C11 -> 00:28:30.159 | J11: 4 | K11: 00:00:32.247 | L11: 00:01:24.129 | M11: =$I$8/H11 -> 0.9099216564 | N11: =(HOUR($I$8)*3600+MINUTE($I$8)*60+SECOND($I$8))/(HOUR(I11)*3600+MINUTE(I11)*60+SECOND(I11)) -> 0.950877193 | O11: =$B$3/(HOUR(H11)+(MINUTE(H11)/60+SECOND(H11)/3600)) -> 3.223279239 | P11: 4
A12: Pär Hansson | B12: Plastpyret | C12: 0.952 | D12: 0.921 | E12: ja | F12: 00:00:00 | G12: 00:30:20 | H12: =G12-F12 -> 00:30:20 | I12: =H12*C12 -> 00:28:52.640 | J12: 5 | K12: 00:00:22.481 | L12: 00:01:46.610 | M12: =$I$8/H12 -> 0.8934230769 | N12: =(HOUR($I$8)*3600+MINUTE($I$8)*60+SECOND($I$8))/(HOUR(I12)*3600+MINUTE(I12)*60+SECOND(I12)) -> 0.9382573572 | O12: =$B$3/(HOUR(H12)+(MINUTE(H12)/60+SECOND(H12)/3600)) -> 3.164835165 | P12: 3

Sheet Deltagare
A1: Skeppare | B1: Båt | C1: SRS | D1: SRSu | E1: Spin | F1: DeltagarNr
A2: Viktor Lundgren | B2: Smaragd | C2: 0.971 | D2: 0.933 | E2: nej | F2: 1
A3: Lennart Berglund | B3: Rival 22 Special | C3: 0.957 | D3: 0.926 | E3: nej | F3: 2
A4: Pär Hansson | B4: Plastpyret | C4: 0.952 | D4: 0.921 | E4: ja | F4: 3
A5: Peter Löfgren | B5: Safir | C5: 0.957 | D5: 0.919 | E5: ja | F5: 4
A6: Martin Westergren | B6: Scanper 22 | C6: 0.816 | D6: 0.801 | E6: nej | F6: 5
A7: Christian Wennberg | B7: H-båt | C7: 0.88 | D7: 0.855 | E7: nej | F7: 6
A8: Erik Lundqvist | B8: M22 | C8: 0.876 | D8: 0.876 | E8: nej | F8: 7
A9: Johan Bjerkner | B9: S30 | C9: 0.986 | D9: 0.955 | E9: nej | F9: 8
A10: Johan Westberg | B10: Sunvind 20 | C10: 0.749 | D10: 0.734 | E10: nej | F10: 9
A11: Per Lagercrantz | B11: Herlinkryssare | D11: 0.8 | E11: nej | F11: 10
F12: 11
F13: 12
F14: 13
F15: 14
F16: 15
F17: 16
F18: 17
F19: 18
F20: 19
F21: 20
F22: 21
F23: 22
F24: 23
F25: 24
F26: 25
F27: 26
F28: 27
F29: 28
F30: 29

Sheet Mall
A1: Segling:
A3: Banlängd: | B3: 1.6
A4: Starttid: | B4: 00:00:00
A7: Skeppare | B7: Båt | C7: SRS | D7: SRSu | E7: Spin | F7: Starttid | G7: Måltid | H7: Seglad tid | I7: Beräknad tid | J7: Placering | K7: Tid till föregående | L7: Tid till segraren | M7: SRSa | N7: Perf | O7: VMC | P7: DeltagarNr

Sheet Användarbeskrivning

Sheet Total
B1: Senaste resultat | M1: Totalt resultat
A2: Skeppare | C2: 2018-05-15 Race 1 | D2: 2018-05-15 Race 2 | E2: 2018-05-22 Race 1 | F2: 2018-05-22 Race 2 | G2: 2018-05-29 Race 1 | H2: 2018-05-29 Race 2 | I2: 2018-06-05 Race 1 | J2: 2018-06-05 Race 2 | N2: Inga borträknade resultat DNS DNF ger totala antal deltagare +1
A3: Viktor Lundgren | C3: 2 | D3: 2 | E3: 3 | F3: 3 | G3: 2 | H3: 5 | I3: 11 | J3: 11 | M3: =SUM(C3:L3) -> 39
A4: Lennart Berglund | C4: 3 | D4: 1 | E4: 2 | F4: 1 | G4: 1 | H4: 2 | I4: 11 | J4: 3 | M4: =SUM(C4:L4) -> 24
A5: Pär Hansson | C5: 5 | D5: 5 | E5: 6 | F5: 4 | G5: 3 | H5: 3 | I5: 11 | J5: 11 | M5: 48
A6: Peter Löfgren | C6: 4 | D6: 3 | E6: 1 | F6: 7 | G6: 11 | H6: 11 | I6: 11 | J6: 11 | M6: 59
A7: Martin Westergren | C7: 1 | D7: 4 | E7: 4 | F7: 2 | G7: 11 | H7: 11 | I7: 1 | J7: 1 | M7: 35
A8: Christian Wennberg | C8: 11 | D8: 11 | F8: 5 | G8: 11 | H8: 11 | I8: 3 | J8: 2 | M8: 54
A9: Erik Lundqvist | C9: 11 | D9: 11 | E9: 5 | F9: 6 | G9: 4 | H9: 1 | I9: 11 | J9: 11 | M9: 60
A10: Johan Bjerkner | C10: 11 | D10: 11 | E10: 11 | F10: 11 | G10: 11 | H10: 11 | I10: 11 | J10: 11 | M10: 88
A11: Johan Westberg | C11: 11 | D11: 11 | E11: 11 | F11: 11 | G11: 6 | H11: 4 | I11: 11 | J11: 11 | M11: 76
A12: Per Lagercrantz | C12: 11 | D12: 11 | E12: 11 | F12: 11 | G12: 5 | H12: 6 | I12: 4 | J12: 4 | M12: 63
